fUSD/lending_fUSD_20241106
["ID","MTS","AMOUNT","RATE_DAILY","PERIOD"]
[341377368,1730857848551,-502.03526123,0.00038356,14]
[341377369,1730857848561,-524.7555038,0.00038356,14]
[341377370,1730857848570,-500.0,0.00038356,14]
[341377371,1730857848580,-663.76,0.00038356,14]
[341377372,1730857848590,-500.0,0.00038356,14]
[341377373,1730857848599,-500.0,0.00038356,14]
[341377374,1730857848609,-696.83,0.00038356,14]
[341377375,1730857848618,-508.53833876,0.00038356,14]
[341377376,1730857848628,-536.19296751,0.00038356,14]
[341377377,1730857848638,-502.55757596,0.00038356,14]
[341377378,1730857848647,-503.54093946,0.00038356,14]
[341377379,1730857848658,-500.0,0.00038356,14]
[341377380,1730857848667,-1274.66,0.00038356,14]
[341377381,1730857848677,-503.57363147,0.00038356,14]
[341377382,1730857848686,-500.0,0.00038356,14]
[341377383,1730857848696,-500.0,0.00038356,14]
[341377384,1730857848706,-500.0,0.00038356,14]
[341377385,1730857848716,-500.0,0.00038356,14]
[341377386,1730857848725,-509.05333791,0.00038356,14]
[341377387,1730857848735,-798.9,0.00038356,14]
[341377388,1730857848745,-503.49562323,0.00038356,14]
[341377389,1730857848755,-500.0,0.00038356,14]
[341377390,1730857848765,-500.0,0.00038356,14]
[341377391,1730857848775,-633.28898129,0.00038356,14]
[341377392,1730857848784,-500.0,0.00038356,14]
[341377393,1730857848794,-501.4119361,0.00038356,14]
[341377394,1730857848804,-512.64796394,0.00038356,14]
[341377395,1730857848813,-500.0,0.00038356,14]
[341377396,1730857848823,-500.0,0.00038356,14]
[341377397,1730857848831,-2537.78,0.00038356,14]
[341377398,1730857848841,-507.98675317,0.00038356,14]
[341377399,1730857848851,-500.0,0.00038356,14]
[341377400,1730857848861,-500.0,0.00038356,14]
[341377401,1730857848871,-500.0,0.00038356,14]
[341377402,1730857848880,-500.0,0.00038356,14]
[341377403,1730857848890,-500.0,0.00038356,14]
[341377404,1730857848902,-500.0,0.00038356,14]
[341377405,1730857848911,-500.0,0.00038356,14]
[341377406,1730857848921,-500.0,0.00038356,14]
[341377407,1730857848931,-500.0,0.00038356,14]
[341377408,1730857848940,-544.29160886,0.00038356,14]
[341377409,1730857848950,-509.79732158,0.00038356,14]
[341377410,1730857848960,-500.0,0.00038356,14]
[341377411,1730857848969,-500.0,0.00038356,14]
[341377412,1730857848979,-500.0,0.00038356,14]
[341377413,1730857848990,-155.06663,0.00038356,2]
[341377414,1730857848999,-500.0,0.00038356,14]
[341377415,1730857849009,-500.0,0.00038356,14]
[341377416,1730857849019,-500.0,0.00038356,14]
[341377417,1730857849029,-500.0,0.00038356,14]
[341377418,1730857849038,-500.0,0.00038356,14]
[341377419,1730857849048,-506.9304037,0.00038356,14]
[341377420,1730857849058,-503.27184138,0.00038356,14]
[341377421,1730857849068,-515.60682184,0.00038356,14]
[341377422,1730857849078,-520.07717163,0.00038356,14]
[341377423,1730857849087,-500.0,0.00038356,14]
[341377424,1730857849097,-500.0,0.00038356,14]
[341377425,1730857849107,-554.47,0.00038356,14]
[341377426,1730857849116,-2562.45,0.00038356,14]
[341377427,1730857849126,-501.15522978,0.00038356,14]
[341377428,1730857849136,-151.0,0.00038356,7]
[341377429,1730857849146,-554.47,0.00038356,14]
[341377430,1730857849157,-826.09,0.00038356,14]
[341377431,1730857849167,-151.0,0.00038356,7]
[341377432,1730857849177,-21253.2,0.00038356,14]
[341377433,1730857849186,-151.0,0.00038356,7]
[341377434,1730857849196,-500.0,0.00038356,14]
[341377435,1730857849206,-504.26755141,0.00038356,14]
[341377436,1730857849215,-501.07947413,0.00038356,14]
[341377437,1730857849225,-500.0,0.00038356,14]
[341377438,1730857849235,-504.78292168,0.00038356,14]
[341377439,1730857849244,-500.0,0.00038356,14]
[341377440,1730857849254,-511.46985001,0.00038356,14]
[341377441,1730857849264,-500.0,0.00038356,14]
[341377442,1730857849274,-500.0,0.00038356,14]
[341377443,1730857849284,-535.40903834,0.00038356,14]
[341377444,1730857849293,-500.0,0.00038356,14]
[341377445,1730857849303,-504.44586121,0.00038356,14]
[341377446,1730857849312,-512.74965946,0.00038356,14]
[341377447,1730857849322,-504.50762261,0.00038356,14]
[341377448,1730857849331,-503.89683373,0.00038356,14]
[341377449,1730857849340,-500.0,0.00038356,14]
[341377450,1730857849350,-500.0,0.00038356,14]
[341377451,1730857849359,-500.0,0.00038356,14]
[341377452,1730857849368,-500.0,0.00038356,14]
[341377453,1730857849379,-500.0,0.00038356,14]
[341377454,1730857849389,-518.70877021,0.00038356,14]
[341377455,1730857849399,-500.0,0.00038356,14]
[341377456,1730857849410,-518.05,0.00038356,14]
[341377457,1730857849419,-782.96,0.00038356,14]
[341377458,1730857849428,-500.0,0.00038356,14]
[341377459,1730857849437,-518.05,0.00038356,14]
[341377460,1730857849447,-500.0,0.00038356,14]
[341377461,1730857849457,-500.0,0.00038356,14]
[341377462,1730857849466,-343.27577416,0.00038356,14]
[341377463,1730857849476,-500.0,0.00038356,14]
[341377464,1730857849485,-503.756953,0.00038356,14]
[341377465,1730857849495,-503.46946157,0.00038356,14]
[341377466,1730857849504,-151.0,0.00038356,7]
[341377467,1730857849514,-151.0,0.00038356,7]
[341377468,1730857849523,-1121.78,0.00038356,14]
[341377469,1730857849628,-151.0,0.00038356,7]
[341377470,1730857849639,-502.00265886,0.00038356,14]
[341377471,1730857849649,-505.89547815,0.00038356,14]
[341377472,1730857849663,-151.0,0.00038356,7]
[341377473,1730857849672,-155.697227,0.00038356,7]
[341377474,1730857849682,-151.0,0.00038356,7]
[341377475,1730857849692,-213.201083,0.00038356,7]
[341377476,1730857849701,-536.75858677,0.00038356,14]
[341377477,1730857849710,-500.0,0.00038356,14]
[341377478,1730857849720,-500.0,0.00038356,14]
[341377479,1730857849729,-500.0,0.00038356,14]
[341377480,1730857849739,-2341.39,0.00038356,14]
[341377481,1730857849748,-506.02449181,0.00038356,14]
[341377482,1730857849758,-986.88,0.00038356,14]
[341377483,1730857849767,-566.3686003,0.00038356,14]
[341377484,1730857849776,-500.0,0.00038356,14]
[341377485,1730857849786,-500.0,0.00038356,14]
[341377486,1730857849795,-506.81698876,0.00038356,14]
[341377487,1730857849804,-622.7,0.00038356,14]
[341377488,1730857849813,-622.7,0.00038356,14]
[341377489,1730857849823,-526.09451186,0.00038356,14]
[341377490,1730857849833,-151.0,0.00038356,7]
[341377491,1730857849842,-10.13895557,0.00038356,7]
[341377492,1730857849915,-140.86104443,0.00038356,7]
[341377493,1730857849924,-2326.94,0.00038356,14]
[341377494,1730857849934,-151.0,0.00038356,7]
[341377495,1730857849943,-536.63472241,0.00038356,14]
[341377496,1730857849953,-608.36,0.00038356,14]
[341377497,1730857849963,-500.0,0.00038356,14]
[341377498,1730857849973,-505.97826252,0.00038356,14]
[341377499,1730857849982,-500.0,0.00038356,14]
[341377500,1730857849992,-779.26,0.00038356,14]
[341377501,1730857850002,-500.0,0.00038356,14]
[341377502,1730857850012,-528.20866162,0.00038356,14]
[341377503,1730857850022,-924.79,0.00038356,14]
[341377504,1730857850032,-240.40176,0.00038356,7]
[341377505,1730857850042,-503.62181253,0.00038356,14]
[341377506,1730857850052,-503.69881735,0.00038356,14]
[341377507,1730857850061,-500.0,0.00038356,14]
[341377508,1730857850071,-250.0,0.00038356,14]
[341377509,1730857850080,-868.47,0.00038356,14]
[341377510,1730857850090,-500.0,0.00038356,14]
[341377511,1730857850099,-250.0,0.00038356,14]
[341377512,1730857850108,-503.71297289,0.00038356,14]
[341377513,1730857850117,-533.4780301,0.00038356,14]
[341377514,1730857850126,-513.42374318,0.00038356,14]
[341377515,1730857850136,-502.05279396,0.00038356,14]
[341377516,1730857850146,-500.0,0.00038356,14]
[341377517,1730857850158,-500.0,0.00038356,14]
[341377518,1730857850167,-500.0,0.00038356,14]
[341377519,1730857850181,-500.0,0.00038356,14]
[341377520,1730857850190,-504.16782908,0.00038356,14]
[341377521,1730857850199,-500.0,0.00038356,14]
[341377522,1730857850208,-571.35132564,0.00038356,14]
[341377523,1730857850218,-526.57601829,0.00038356,14]
[341377524,1730857850227,-500.0,0.00038356,14]
[341377525,1730857850236,-500.0,0.00038356,14]
[341377526,1730857850245,-500.0,0.00038356,14]
[341377527,1730857850254,-500.0,0.00038356,14]
[341377528,1730857850265,-500.0,0.00038356,14]
[341377529,1730857850285,-500.0,0.00038356,14]
[341377530,1730857850300,-500.0,0.00038356,14]
[341377531,1730857850318,-58.780894,0.00038356,14]
[341377532,1730857851167,-130.95715347,0.00038356,14]
[341377533,1730857851182,-5246.2,0.00038356,14]
[341377534,1730857851196,-500.0,0.00038356,14]
[341377535,1730857851212,-500.0,0.00038356,14]
[341377536,1730857851227,-500.0,0.00038356,14]
[341377537,1730857851238,-500.0,0.00038356,14]
[341377538,1730857851247,-500.0,0.00038356,14]
[341377539,1730857851399,-503.68728416,0.00038356,14]
[341377540,1730857851424,-500.0,0.00038356,14]
[341377541,1730857851433,-500.0,0.00038356,14]
[341377542,1730857851443,-500.0,0.00038356,14]
[341377543,1730857851453,-500.0,0.00038356,14]
[341377544,1730857851462,-500.0,0.00038356,14]
[341377545,1730857851472,-8980.33,0.00038356,14]
[341377546,1730857851481,-500.0,0.00038356,14]
[341377547,1730857851490,-543.55006672,0.00038356,14]
[341377548,1730857851499,-1759.85,0.00038356,14]
[341377549,1730857851508,-500.0,0.00038356,14]
[341377550,1730857851517,-500.0,0.00038356,14]
[341377551,1730857851526,-500.0,0.00038356,14]
[341377552,1730857851535,-2754.29,0.00038356,7]
[341377553,1730857851544,-1613.23,0.00038356,14]
[341377554,1730857851553,-669.34,0.00038356,14]
[341377555,1730857851563,-500.0,0.00038356,14]
[341377556,1730857851571,-365.52228706,0.00038356,14]
[341377557,1730857851580,-669.34,0.00038356,14]
[341377558,1730857851590,-500.0,0.00038356,14]
[341377559,1730857851599,-500.0,0.00038356,14]
[341377560,1730857851609,-503.83459726,0.00038356,14]
[341377561,1730857851617,-568.28,0.00038356,14]
[341377562,1730857851626,-1837.88,0.00038356,14]
[341377563,1730857851636,-500.0,0.00038356,14]
[341377564,1730857851645,-500.0,0.00038356,14]
[341377565,1730857851656,-590.03,0.00038356,14]
[341377566,1730857851665,-503.85785824,0.00038356,14]
[341377567,1730857851673,-151.0,0.00038356,7]
[341377568,1730857851682,-500.0,0.00038356,14]
[341377569,1730857851691,-151.0,0.00038356,7]
[341377570,1730857851701,-510.50893799,0.00038356,14]
[341377571,1730857851711,-500.0,0.00038356,14]
[341377572,1730857851721,-220.344115,0.00038356,7]
[341377573,1730857851732,-1634.91,0.00038356,14]
[341377574,1730857851742,-500.0,0.00038356,14]
[341377575,1730857851752,-500.0,0.00038356,14]
[341377576,1730857851761,-500.0,0.00038356,14]
[341377577,1730857851770,-500.0,0.00038356,14]
[341377578,1730857851779,-519.12204157,0.00038356,14]
[341377579,1730857851788,-500.0,0.00038356,14]
[341377580,1730857851798,-523.55538223,0.00038356,14]
[341377581,1730857851808,-500.0,0.00038356,14]
[341377582,1730857851817,-500.0,0.00038356,14]
[341377583,1730857851827,-500.0,0.00038356,14]
[341377584,1730857851838,-326.04042037,0.00038356,14]
[341377585,1730857851849,-500.0,0.00038356,14]
[341377586,1730857851859,-500.0,0.00038356,14]
[341377587,1730857851870,-500.0,0.00038356,14]
[341377588,1730857851879,-502.38373646,0.00038356,7]
[341377589,1730857851889,-500.0,0.00038356,14]
[341377590,1730857851900,-500.0,0.00038356,14]
[341377591,1730857851916,-1136.9,0.00038356,14]
[341377592,1730857851926,-172.501721,0.00038356,14]
[341377593,1730857851935,-500.0,0.00038356,14]
[341377594,1730857851944,-500.0,0.00038356,14]
[341377595,1730857851955,-500.0,0.00038356,14]
[341377596,1730857851964,-500.0,0.00038356,14]
[341377597,1730857851973,-341.77260167,0.00038356,14]
[341377598,1730857851983,-500.0,0.00038356,14]
[341377599,1730857851992,-500.0,0.00038356,14]
[341377600,1730857852002,-500.0,0.00038356,14]
[341377601,1730857852011,-500.0,0.00038356,14]
[341377602,1730857852020,-500.0,0.00038356,14]
[341377603,1730857852030,-151.0,0.00038356,7]
[341377604,1730857852040,-151.0,0.00038356,7]
[341377605,1730857852049,-151.0,0.00038356,7]
[341377606,1730857852059,-500.0,0.00038356,14]
[341377607,1730857852068,-1084.98,0.00038356,14]
[341377608,1730857852078,-1755.36,0.00038356,14]
[341377609,1730857852087,-500.0,0.00038356,14]
[341377610,1730857852097,-512.47715203,0.00038356,14]
[341377611,1730857852107,-500.0,0.00038356,14]
[341377612,1730857852116,-500.0,0.00038356,14]
[341377613,1730857852126,-151.0,0.00038356,7]
[341377614,1730857852135,-151.0,0.00038356,7]
[341377615,1730857852145,-151.0,0.00038356,7]
[341377616,1730857852155,-500.0,0.00038356,14]
[341377617,1730857852164,-1516.2,0.00038356,14]
[341377618,1730857852174,-570.87,0.00038356,14]
[341377619,1730857852183,-504.31154197,0.00038356,14]
[341377620,1730857852194,-694.77,0.00038356,14]
[341377621,1730857852204,-1981.86,0.00038356,14]
[341377622,1730857852213,-1981.86,0.00038356,14]
[341377623,1730857852222,-500.0,0.00038356,14]
[341377624,1730857852232,-500.0,0.00038356,14]
[341377625,1730857852242,-500.0,0.00038356,14]
[341377626,1730857852252,-500.0,0.00038356,14]
[341377627,1730857852261,-485.84465469,0.00038356,14]
[341377632,1730858158626,2050.0,0.00035,120]
[341377634,1730858441089,150.0,0.000199,2]
[341377679,1730858961617,156.75,0.00015342,2]
[341377692,1730859032748,-1762.0,0.000291,2]
[341377693,1730859032757,-291.806,0.0003,2]
[341377694,1730859032767,-84.114,0.00030091,2]
[341377695,1730859032778,-207.692,0.00030091,2]
[341377696,1730859032788,-480.694398,0.00032,5]
[341377697,1730859032954,-219.305602,0.00032,5]
[341377698,1730859032963,-156.75,0.0003272,2]
[341377699,1730859032972,-1592.9136299,0.00034,35]
[341377700,1730859032981,-457.02,0.00034469,2]
[341377701,1730859032991,-93.96517987,0.00035,36]
[341377725,1730859038722,-806.03482013,0.00035,36]
[341377726,1730859038732,-178.48,0.00035669,2]
[341377727,1730859038742,-900.0,0.00036,37]
[341377728,1730859038752,-173.0,0.00036285,2]
[341377729,1730859038763,-250.0,0.00036337,2]
[341377730,1730859038772,-200.0,0.00036355,7]
[341377731,1730859038781,-7286.84,0.00036431,61]
[341377732,1730859038791,-250.0,0.00036453,120]
[341377733,1730859038803,-196.29,0.00036583,120]
[341377734,1730859038813,-302.29,0.00036594,2]
[341377735,1730859038822,-164.66,0.00036612,2]
[341377736,1730859038831,-457.02,0.00036732,2]
[341377737,1730859038841,-900.0,0.00037,38]
[341377738,1730859038850,-198.99650224,0.000372,103]
[341377739,1730859038860,-697.71,0.00037488,2]
[341377740,1730859039003,-676.34,0.00037808,2]
[341377741,1730859039014,-526.58195973,0.0003798,2]
[341377742,1730859039023,-241.19458013,0.00037999,21]
[341377743,1730859039033,-900.0,0.00038,39]
[341377744,1730859039042,-5000.0,0.00038,14]
[341377745,1730859039051,-5000.0,0.00038,14]
[341377746,1730859039060,-2000.0,0.00038,2]
[341377747,1730859039070,-27616.23998942,0.00038,2]
[341377748,1730859039082,-800.0,0.00038,2]
[341377760,1730859040686,-381.77,0.0003799,10]
[341377761,1730859040695,-35118.41072598,0.00038,2]
[341377762,1730859040707,-2118.45388256,0.00038,2]
[341377763,1730859040722,-24916.98997253,0.00038,2]
[341377764,1730859040923,-1503.0361,0.00038,2]
[341377773,1730859043574,-158.06,0.00037548,2]
[341377774,1730859043585,-4758.86932951,0.00038,2]
[341377775,1730859043595,-154.196,0.00038,50]
[341377776,1730859043604,-167.11,0.00038088,2]
[341377778,1730859043613,-159.386,0.0003809,14]
[341377779,1730859043622,-500.0,0.000382,2]
[341377780,1730859043631,-7536.6569,0.000382,2]
[341377781,1730859043640,-690.7547337,0.00038256,13]
[341377782,1730859043649,-318.62560973,0.00038256,2]
[341377783,1730859043658,-576.92671315,0.00038256,2]
[341377784,1730859043667,-166029.87384152,0.000383,10]
[341377785,1730859043676,-6789.25057378,0.000383,2]
[341377786,1730859043686,-720.07,0.00038304,7]
[341377787,1730859043695,-500.0,0.00038355,15]
[341377788,1730859043704,-602.06513579,0.00038355,15]
[341377789,1730859043713,-500.0,0.00038355,15]
[341377790,1730859043722,-511.31,0.00038355,14]
[341377791,1730859043731,-511.31,0.00038355,14]
[341377792,1730859043740,-511.31,0.00038355,14]
[341377793,1730859043750,-511.31,0.00038355,14]
[341377794,1730859043759,-511.31,0.00038355,14]
[341377795,1730859043768,-511.31,0.00038355,14]
[341377796,1730859043777,-511.31,0.00038355,14]
[341377797,1730859043786,-511.31,0.00038355,14]
[341377798,1730859043797,-511.31,0.00038355,14]
[341377799,1730859043807,-511.31,0.00038355,14]
[341377800,1730859043818,-500.0,0.00038355,2]
[341377801,1730859043827,-193.3801255,0.00038356,2]
[341377802,1730859043837,-388.67466243,0.00038356,2]
[341377803,1730859043846,-500.0,0.00038356,14]
[341377804,1730859043855,-500.0,0.00038356,14]
[341377805,1730859043864,-500.0,0.00038356,14]
[341377806,1730859043875,-500.0,0.00038356,14]
[341377807,1730859043884,-500.0,0.00038356,14]
[341377808,1730859043894,-500.0,0.00038356,14]
[341377809,1730859043903,-500.0,0.00038356,14]
[341377810,1730859043912,-500.0,0.00038356,14]
[341377811,1730859043921,-500.0,0.00038356,14]
[341377812,1730859043930,-500.0,0.00038356,14]
[341377814,1730859043940,-500.0,0.00038356,14]
[341377816,1730859043949,-500.0,0.00038356,14]
[341377818,1730859043958,-1148.93,0.00038356,14]
[341377820,1730859043968,-500.0,0.00038356,14]
[341377822,1730859043977,-1148.93,0.00038356,14]
[341377824,1730859043986,-500.0,0.00038356,14]
[341377826,1730859043996,-500.0,0.00038356,14]
[341377828,1730859044005,-500.0,0.00038356,14]
[341377830,1730859044015,-500.0,0.00038356,14]
[341377832,1730859044026,-500.0,0.00038356,14]
[341377834,1730859044035,-584.51,0.00038356,14]
[341377836,1730859044045,-500.0,0.00038356,14]
[341377839,1730859044056,-500.0,0.00038356,14]
[341377840,1730859044065,-500.0,0.00038356,14]
[341377842,1730859044074,-500.0,0.00038356,14]
[341377844,1730859044083,-622.43,0.00038356,14]
[341377846,1730859044093,-500.0,0.00038356,14]
[341377848,1730859044103,-500.0,0.00038356,14]
[341377850,1730859044112,-500.0,0.00038356,14]
[341377852,1730859044121,-500.0,0.00038356,14]
[341377854,1730859044130,-500.0,0.00038356,14]
[341377855,1730859044139,-500.0,0.00038356,14]
[341377856,1730859044149,-500.0,0.00038356,14]
[341377857,1730859044158,-500.0,0.00038356,14]
[341377858,1730859044167,-500.0,0.00038356,14]
[341377859,1730859044177,-500.0,0.00038356,14]
[341377861,1730859044186,-504.97381591,0.00038356,14]
[341377863,1730859044196,-500.0,0.00038356,14]
[341377864,1730859044207,-500.0,0.00038356,14]
[341377865,1730859044216,-500.0,0.00038356,14]
[341377866,1730859044227,-151.0,0.00038356,7]
[341377868,1730859044236,-151.0,0.00038356,7]
[341377870,1730859044246,-500.0,0.00038356,14]
[341377871,1730859044256,-165.227854,0.00038356,7]
[341377872,1730859044266,-500.0,0.00038356,14]
[341377873,1730859044276,-152.285293,0.00038356,7]
[341377874,1730859044286,-500.0,0.00038356,14]
[341377875,1730859044296,-500.0,0.00038356,14]
[341377876,1730859044305,-500.0,0.00038356,14]
[341377877,1730859044316,-500.0,0.00038356,14]
[341377878,1730859044325,-500.0,0.00038356,14]
[341377879,1730859044335,-500.0,0.00038356,14]
[341377880,1730859044346,-500.0,0.00038356,14]
[341377881,1730859044355,-500.0,0.00038356,14]
[341377882,1730859044365,-500.0,0.00038356,14]
[341377883,1730859044375,-500.0,0.00038356,14]
[341377884,1730859044386,-500.0,0.00038356,14]
[341377885,1730859044397,-500.0,0.00038356,14]
[341377886,1730859044524,-500.0,0.00038356,14]
[341377887,1730859044535,-500.0,0.00038356,14]
[341377888,1730859044544,-500.0,0.00038356,14]
[341377889,1730859044554,-500.0,0.00038356,14]
[341377890,1730859044564,-500.0,0.00038356,14]
[341377891,1730859044574,-340.5539147,0.00038356,14]
[341377892,1730859044584,-500.0,0.00038356,14]
[341377893,1730859044593,-506.08102914,0.00038356,14]
[341377894,1730859044603,-500.0,0.00038356,14]
[341377895,1730859044612,-500.0,0.00038356,14]
[341377896,1730859044622,-500.0,0.00038356,14]
[341377897,1730859044631,-300.11530613,0.00038356,14]
[341377898,1730859044640,-500.0,0.00038356,14]
[341377899,1730859044649,-500.0,0.00038356,14]
[341377900,1730859044658,-500.0,0.00038356,14]
[341377901,1730859044668,-500.0,0.00038356,14]
[341377902,1730859044678,-500.0,0.00038356,14]
[341377903,1730859044687,-558.35,0.00038356,14]
[341377904,1730859044696,-558.35,0.00038356,14]
[341377905,1730859044705,-221.1040926,0.00038356,14]
[341377906,1730859044716,-500.0,0.00038356,14]
[341377907,1730859044725,-500.0,0.00038356,14]
[341377908,1730859044735,-500.0,0.00038356,14]
[341377909,1730859044744,-315.56444726,0.00038356,14]
[341377910,1730859044754,-532.68367354,0.00038356,14]
[341377911,1730859044763,-500.0,0.00038356,14]
[341377912,1730859044773,-500.0,0.00038356,14]
[341377913,1730859044782,-504.87321768,0.00038356,14]
[341377914,1730859044791,-500.0,0.00038356,14]
[341377915,1730859044804,-500.0,0.00038356,14]
[341377916,1730859044813,-500.0,0.00038356,14]
[341377917,1730859044826,-500.0,0.00038356,14]
[341377918,1730859044835,-500.0,0.00038356,14]
[341377919,1730859044844,-500.0,0.00038356,14]
[341377920,1730859044854,-500.0,0.00038356,14]
[341377921,1730859044865,-500.0,0.00038356,14]
[341377922,1730859044876,-151.0,0.00038356,7]
[341377923,1730859044885,-500.0,0.00038356,14]
[341377924,1730859044895,-151.0,0.00038356,7]
[341377925,1730859044904,-262.417347,0.00038356,7]
[341377926,1730859044914,-507.43180465,0.00038356,14]
[341377927,1730859044924,-500.0,0.00038356,14]
[341377928,1730859044934,-500.0,0.00038356,14]
[341377929,1730859044943,-500.0,0.00038356,14]
[341377930,1730859044954,-500.0,0.00038356,14]
[341377931,1730859044964,-500.0,0.00038356,14]
[341377932,1730859044973,-500.0,0.00038356,14]
[341377933,1730859044982,-500.0,0.00038356,14]
[341377934,1730859044991,-500.0,0.00038356,14]
[341377935,1730859045001,-351.384674,0.00038356,14]
[341377936,1730859045011,-500.0,0.00038356,14]
[341377937,1730859045021,-500.0,0.00038356,14]
[341377938,1730859045032,-153.228107,0.00038356,7]
[341377939,1730859045042,-500.0,0.00038356,14]
[341377940,1730859045052,-500.0,0.00038356,5]
[341377941,1730859045062,-500.0,0.00038356,14]
[341377942,1730859045073,-500.0,0.00038356,14]
[341377943,1730859045083,-229.62943991,0.00038356,14]
[341377944,1730859045092,-500.0,0.00038356,14]
[341377945,1730859045102,-350.69456172,0.00038356,14]
[341377946,1730859045112,-500.0,0.00038356,14]
[341377947,1730859045122,-500.0,0.00038356,14]
[341377948,1730859045132,-194.90406862,0.00038356,14]
[341377949,1730859045142,-500.0,0.00038356,14]
[341377950,1730859045153,-500.0,0.00038356,14]
[341377951,1730859045164,-500.0,0.00038356,14]
[341377952,1730859045175,-500.0,0.00038356,14]
[341377953,1730859045185,-500.0,0.00038356,14]
[341377954,1730859045195,-500.0,0.00038356,14]
[341377955,1730859045205,-500.0,0.00038356,14]
[341377956,1730859045215,-500.0,0.00038356,14]
[341377957,1730859045226,-500.0,0.00038356,14]
[341377958,1730859045236,-500.0,0.00038356,14]
[341377959,1730859045247,-500.0,0.00038356,14]
[341377960,1730859045258,-500.0,0.00038356,14]
[341377961,1730859045269,-500.0,0.00038356,14]
[341377962,1730859045280,-508.84108844,0.00038356,14]
[341377963,1730859045291,-500.0,0.00038356,14]
[341377964,1730859045301,-247.06992293,0.00038356,14]
[341377965,1730859045312,-580.78667462,0.00038356,14]
[341377966,1730859045324,-500.0,0.00038356,14]
[341377967,1730859045334,-681.79,0.00038356,14]
[341377968,1730859045343,-681.79,0.00038356,14]
[341377969,1730859045352,-505.44264164,0.00038356,14]
[341377970,1730859045362,-528.11198523,0.00038356,14]
[341377971,1730859045373,-512.49,0.00038356,14]
[341377972,1730859045383,-512.49,0.00038356,14]
[341377973,1730859045393,-500.0,0.00038356,14]
[341377974,1730859045402,-500.0,0.00038356,14]
[341377975,1730859045412,-500.0,0.00038356,14]
[341377976,1730859045421,-642.00627022,0.00038356,14]
[341377977,1730859045430,-500.0,0.00038356,14]
[341377978,1730859045440,-500.0,0.00038356,14]
[341377979,1730859045449,-459.37937991,0.00038356,14]
[341377980,1730859045459,-500.0,0.00038356,14]
[341377981,1730859045469,-500.0,0.00038356,14]
[341377982,1730859045479,-500.0,0.00038356,14]
[341377983,1730859045489,-500.0,0.00038356,14]
[341377984,1730859045499,-500.0,0.00038356,14]
[341377985,1730859045508,-318.47258064,0.00038356,14]
[341377986,1730859045518,-565.03451112,0.00038356,14]
[341377987,1730859045528,-500.0,0.00038356,14]
[341377988,1730859045538,-500.0,0.00038356,14]
[341377989,1730859045547,-1717.76,0.00038356,14]
[341377990,1730859045557,-1717.76,0.00038356,14]
[341377991,1730859045568,-1717.76,0.00038356,14]
[341377992,1730859045577,-1392.49,0.00038356,14]
[341377993,1730859045587,-1392.49,0.00038356,14]
[341377994,1730859045597,-1392.49,0.00038356,14]
[341377995,1730859045606,-500.0,0.00038356,14]
[341377996,1730859045615,-294.25709179,0.00038356,14]